[Event "12th Arad Open 2019"]
[Site "Arad"]
[Date "2019.07.26"]
[Round "4.10"]
[White "Song, Raymond"]
[Black "Florescu, Codrut-Constantin"]
[Result "0-1"]
[ECO "B81"]
[WhiteElo "2456"]
[BlackElo "2312"]
[Annotator "ChessBase"]
[PlyCount "108"]
[EventDate "2019.07.24"]
[EventType "swiss"]
[EventCountry "ROU"]
[SourceTitle "playchess.com"]
[Source "ChessBase"]
[SourceQuality "1"]
[TimeControl "40/5400+30:900+30"]

1. e4 {[%emt 0:00:00]} c5 {[%emt 0:00:00]} 2. Nf3 {[%emt 0:00:00]} e6 {[%emt 0:00:00]} 3. d4 {[%emt 0:00:00]} cxd4 {[%emt 0:00:00]} 4. Nxd4 {[%emt 0:00:00]} Nf6 {[%emt 0:00:11]} 5. Nc3 {[%emt 0:00:00]} d6 {[%emt 0:00:04]} 6. g4 {[%emt 0:00:12]} h6 {[%emt 0:00:34]} 7. h4 {[%emt 0:00:04]} a6 {[%emt 0:02:21]} 8. Qf3 {[%emt 0:00:07]} Qb6 {[%emt 0:01:41]} 9. Nb3 {[%emt 0:01:06]} h5 {[%emt 0:13:06]} 10. gxh5 {[%emt 0:03:29]} Nxh5 {[%emt 0:00:06]} 11. Bg5 {[%emt 0:02:26]} Nc6 {[%emt 0:00:56]} 12. O-O-O {[%emt 0:00:24]} Bd7 {[%emt 0:00:24]} 13. Bh3 {[%emt 0:00:55]} Ne5 {[%emt 0:02:19]} 14. Qe2 {[%emt 0:03:27]} Rc8 {[%emt 0:08:29]} 15. f4 {[%emt 0:08:33]} Nc4 {[%emt 0:03:52]} 16. Rd3 {[%emt 0:08:23]} a5 {[%emt 0:12:29]} 17. a4 {[%emt 0:03:42]} Qb4 {[%emt 0:14:16]} 18. f5 {[%emt 0:07:21]} e5 {[%emt 0:07:07]} 19. f6 {[%emt 0:18:54]} gxf6 {[%emt 0:00:49]} 20. Bxd7+ {[%emt 0:00:16]} Kxd7 {[%emt 0:00:06]} 21. Qg4+ {[%emt 0:01:11]} Kd8 {[%emt 0:00:38]} 22. Rf1 {[%emt 0:02:50]} Be7 {[%emt 0:04:15]} 23. Nd5 {[%emt 0:01:47]} Qxa4 {[%emt 0:00:20]} 24. Nxe7 {[%emt 0:00:08]} Kxe7 {[%emt 0:00:10]} 25. Rxf6 {[%emt 0:06:37]} Nxf6 {[%emt 0:01:30]} 26. Qf5 {[%emt 0:00:30]} Kd8 {[%emt 0:02:39]} 27. Bxf6+ {[%emt 0:22:40]} Kc7 {[%emt 0:00:05]} 28. Bxh8 {[%emt 0:00:00]} Rxh8 {[%emt 0:00:08]} 29. Qxf7+ {[%emt 0:00:08]} Kb8 {[%emt 0:00:17]} 30. Rg3 {[%emt 0:01:32]} Qb4 {[%emt 0:03:01]} 31. Rg8+ {[%emt 0:00:05]} Rxg8 {[%emt 0:00:04]} 32. Qxg8+ {[%emt 0:00:02]} Ka7 {[%emt 0:00:08]} 33. Qg1+ {[%emt 0:04:11]} Ka6 {[%emt 0:00:11]} 34. Qd1 {[%emt 0:03:47]} a4 {[%emt 0:00:37]} 35. h5 {[%emt 0:00:02]} axb3 {[%emt 0:18:29]} 36. cxb3 {[%emt 0:00:01]} Na5 {[%emt 0:00:07]} 37. Qd3+ {[%emt 0:00:03]} b5 {[%emt 0:01:26]} 38. Kc2 {[%emt 0:00:08]} Nc6 {[%emt 0:01:05]} 39. h6 {[%emt 0:00:25]} Nd4+ {[%emt 0:00:28]} 40. Kd1 {[%emt 0:00:00]} Qa5 {[%emt 0:00:00]} 41. Qc3 {[%emt 0:04:57]} Qa1+ {[%emt 0:03:59]} 42. Qc1 {[%emt 0:00:37]} Qxc1+ {[%emt 0:00:26]} 43. Kxc1 {[%emt 0:00:01]} Ne2+ {[%emt 0:00:06]} 44. Kd2 {[%emt 0:00:02]} Nf4 {[%emt 0:00:06]} 45. h7 {[%emt 0:00:01]} Ng6 {[%emt 0:00:04]} 46. Ke3 {[%emt 0:00:47]} Kb6 {[%emt 0:07:19]} 47. Kf3 {[%emt 0:00:05]} Nh8 {[%emt 0:04:14]} 48. Kg4 {[%emt 0:07:51]} d5 {[%emt 0:00:17]} 49. Kf5 {[%emt 0:03:55]} d4 {[%emt 0:00:12]} 50. Kxe5 {[%emt 0:01:45]} d3 {[%emt 0:00:05]} 51. Kf6 {[%emt 0:00:02]} d2 {[%emt 0:00:08]} 52. Kg7 {[%emt 0:00:02]} d1=Q {[%emt 0:00:07]} 53. Kxh8 {[%emt 0:00:01]} Qg4 {[%emt 0:00:58]} 54. b4 {[%emt 0:01:00]} Qg6 {[%emt 0:00:14]} 0-1

[Event "12th Arad Open 2019"]
[Site "Arad"]
[Date "2019.07.26"]
[Round "4.11"]
[White "David, Alexandru-Vasile"]
[Black "Gorodetzky, Matan"]
[Result "1-0"]
[ECO "D00"]
[WhiteElo "2428"]
[BlackElo "2290"]
[Annotator "NA"]
[PlyCount "85"]
[EventDate "2019.07.24"]
[EventType "swiss"]
[EventCountry "ROU"]
[SourceTitle "playchess.com"]
[Source "ChessBase"]
[SourceQuality "1"]
[TimeControl "40/5400+30:900+30"]

1. d4 {[%emt 0:00:00]} d5 {[%emt 0:00:00]} 2. Bf4 {[%emt 0:00:00]} Nf6 {[%emt 0:01:06]} 3. e3 {[%emt 0:00:05]} c5 {[%emt 0:01:59]} 4. dxc5 {[%emt 0:02:41]} Nc6 {[%emt 0:13:29]} 5. Bb5 {[%emt 0:00:29]} Qa5+ {[%emt 0:09:36]} 6. Nc3 {[%emt 0:00:08]} a6 {[%emt 0:00:23]} 7. Bxc6+ {[%emt 0:04:28]} bxc6 {[%emt 0:00:02]} 8. Nf3 {[%emt 0:00:08]} Ne4 {[%emt 0:27:51]} 9. Qd4 {[%emt 0:00:25]} Nxc3 {[%emt 0:00:07]} 10. Qxc3 {[%emt 0:00:05]} Qxc3+ {[%emt 0:00:10]} 11. bxc3 {[%emt 0:00:04]} f6 {[%emt 0:00:37]} 12. Bc7 {[%emt 0:00:05]} e5 {[%emt 0:00:27]} 13. Bb6 {[%emt 0:00:05]} Bf5 {[%emt 0:01:21]} 14. O-O-O {[%emt 0:00:07]} Be7 {[%emt 0:07:51]} 15. Nd2 {[%emt 0:00:06]} Bd8 {[%emt 0:05:56]} 16. Bxd8 {[%emt 0:03:07]} Rxd8 {[%emt 0:00:22]} 17. f4 {[%emt 0:00:06]} O-O {[%emt 0:02:27]} 18. fxe5 {[%emt 0:00:46]} fxe5 {[%emt 0:00:39]} 19. Rhf1 {[%emt 0:00:06]} Rb8 {[%emt 0:05:11]} 20. Rf2 {[%emt 0:00:57]} Bg4 {[%emt 0:02:24]} 21. Rxf8+ {[%emt 0:00:41]} Kxf8 {[%emt 0:00:02]} 22. Rf1+ {[%emt 0:00:12]} Ke7 {[%emt 0:00:05]} 23. Nb3 {[%emt 0:09:25]} Be2 {[%emt 0:03:05]} 24. Rf2 {[%emt 0:02:23]} Bb5 {[%emt 0:00:05]} 25. Na5 {[%emt 0:04:10]} Ke6 {[%emt 0:01:48]} 26. g4 {[%emt 0:06:39]} h6 {[%emt 0:00:27]} 27. c4 {[%emt 0:02:24]} dxc4 {[%emt 0:08:20]} 28. Rd2 {[%emt 0:00:30]} Kf6 {[%emt 0:03:59]} 29. h4 {[%emt 0:08:54]} Re8 {[%emt 0:00:01]} 30. c3 {[%emt 0:00:09]} e4 {[%emt 0:01:22]} 31. Kb2 {[%emt 0:03:01]} Re5 {[%emt 0:00:35]} 32. Rd6+ {[%emt 0:00:11]} Kf7 {[%emt 0:01:28]} 33. Nb7 {[%emt 0:00:31]} Rd5 {[%emt 0:01:53]} 34. Ka3 {[%emt 0:02:03]} Rd3 {[%emt 0:00:29]} 35. Kb4 {[%emt 0:00:08]} Rxe3 {[%emt 0:01:09]} 36. a4 {[%emt 0:00:07]} Bxa4 {[%emt 0:00:42]} 37. Kxa4 {[%emt 0:00:07]} Rxc3 {[%emt 0:00:06]} 38. Nd8+ {[%emt 0:00:41]} Ke8 {[%emt 0:00:36]} 39. Nxc6 {[%emt 0:00:42]} Rd3 {[%emt 0:00:11]} 40. Nd4 {[%emt 0:00:00]} e3 {[%emt 0:00:00]} 41. c6 {[%emt 0:04:32]} Ke7 {[%emt 0:01:07]} 42. Nf5+ {[%emt 0:00:34]} Kf7 {[%emt 0:00:07]} 43. c7 {[%emt 0:00:32]} 1-0

[Event "12th Arad Open 2019"]
[Site "Arad"]
[Date "2019.07.26"]
[Round "4.12"]
[White "Petrisor, Adrian-Marian"]
[Black "Talu, Mircea"]
[Result "1-0"]
[ECO "E11"]
[WhiteElo "2422"]
[BlackElo "2278"]
[Annotator "NA"]
[PlyCount "87"]
[EventDate "2019.07.24"]
[EventType "swiss"]
[EventCountry "ROU"]
[SourceTitle "playchess.com"]
[Source "ChessBase"]
[SourceQuality "1"]
[TimeControl "40/5400+30:900+30"]

1. d4 {[%emt 0:00:00]} Nf6 {[%emt 0:03:12]} 2. c4 {[%emt 0:00:24]} e6 {[%emt 0:00:09]} 3. Nf3 {[%emt 0:00:16]} Bb4+ {[%emt 0:00:48]} 4. Nbd2 {[%emt 0:00:18]} O-O {[%emt 0:01:25]} 5. a3 {[%emt 0:00:17]} Bxd2+ {[%emt 0:00:24]} 6. Bxd2 {[%emt 0:00:43]} b6 {[%emt 0:05:35]} 7. Bg5 {[%emt 0:04:57]} Bb7 {[%emt 0:01:38]} 8. Nd2 {[%emt 0:00:42]} h6 {[%emt 0:01:16]} 9. Bh4 {[%emt 0:00:24]} d6 {[%emt 0:04:18]} 10. Qc2 {[%emt 0:08:19]} c5 {[%emt 0:04:44]} 11. dxc5 {[%emt 0:02:08]} bxc5 {[%emt 0:02:13]} 12. Rd1 {[%emt 0:00:33]} Nbd7 {[%emt 0:01:50]} 13. e3 {[%emt 0:02:46]} Qa5 {[%emt 0:12:34]} 14. f3 {[%emt 0:03:39]} Rab8 {[%emt 0:09:54]} 15. Be2 {[%emt 0:02:52]} Bc6 {[%emt 0:01:15]} 16. O-O {[%emt 0:00:31]} Rb6 {[%emt 0:00:06]} 17. Rb1 {[%emt 0:09:47]} Rfb8 {[%emt 0:02:18]} 18. Rfc1 {[%emt 0:08:55]} Ne8 {[%emt 0:12:36]} 19. Bf1 {[%emt 0:06:06]} R6b7 {[%emt 0:09:38]} 20. Be1 {[%emt 0:02:23]} Qc7 {[%emt 0:00:33]} 21. Qc3 {[%emt 0:04:49]} a5 {[%emt 0:01:13]} 22. b3 {[%emt 0:00:58]} Rb6 {[%emt 0:00:40]} 23. Bd3 {[%emt 0:05:58]} Qb7 {[%emt 0:06:04]} 24. Bc2 {[%emt 0:02:17]} d5 {[%emt 0:02:24]} 25. a4 {[%emt 0:04:34]} Nef6 {[%emt 0:09:24]} 26. cxd5 Nxd5 {[%emt 0:02:00]} 27. Qd3 {[%emt 0:03:57]} g6 {[%emt 0:03:08]} 28. Nc4 {[%emt 0:00:11]} Ra6 {[%emt 0:00:45]} 29. Nd6 {[%emt 0:06:55]} Qa7 {[%emt 0:00:06]} 30. Nxf7 {[%emt 0:00:08]} Kxf7 {[%emt 0:00:18]} 31. Qxg6+ {[%emt 0:00:06]} Ke7 {[%emt 0:00:30]} 32. Bh4+ {[%emt 0:00:05]} N7f6 {[%emt 0:01:02]} 33. Bxf6+ {[%emt 0:00:40]} Nxf6 {[%emt 0:00:08]} 34. Qg7+ {[%emt 0:00:04]} Kd8 {[%emt 0:00:55]} 35. Qxf6+ {[%emt 0:00:09]} Qe7 {[%emt 0:00:11]} 36. Rd1+ {[%emt 0:00:06]} Bd7 {[%emt 0:00:04]} 37. Qh8+ {[%emt 0:00:55]} Kc7 {[%emt 0:00:07]} 38. Qe5+ {[%emt 0:00:26]} Kc8 {[%emt 0:00:29]} 39. Bd3 {[%emt 0:00:58]} Ra7 {[%emt 0:00:46]} 40. Rbc1 {[%emt 0:00:00]} Rc7 {[%emt 0:00:00]} 41. Ba6+ {[%emt 0:00:09]} Kd8 {[%emt 0:00:46]} 42. Bb5 {[%emt 0:01:02]} Rbc8 {[%emt 0:01:12]} 43. Rd6 {[%emt 0:00:32]} Ra7 {[%emt 0:01:56]} 44. Rcd1 {[%emt 0:00:10]} 1-0

[Event "12th Arad Open 2019"]
[Site "Arad"]
[Date "2019.07.26"]
[Round "4.13"]
[White "Gilea, Lucian"]
[Black "Martinovici, Ilie"]
[Result "1-0"]
[ECO "E17"]
[WhiteElo "2287"]
[BlackElo "2407"]
[Annotator "NA"]
[PlyCount "131"]
[EventDate "2019.07.24"]
[EventType "swiss"]
[EventCountry "ROU"]
[SourceTitle "playchess.com"]
[Source "ChessBase"]
[SourceQuality "1"]
[TimeControl "40/5400+30:900+30"]

1. d4 {[%emt 0:00:00]} Nf6 {[%emt 0:00:00]} 2. c4 {[%emt 0:00:00]} e6 {[%emt 0:00:00]} 3. Nf3 {[%emt 0:00:24]} b6 {[%emt 0:00:07]} 4. g3 {[%emt 0:00:38]} Bb7 {[%emt 0:00:08]} 5. Bg2 {[%emt 0:00:04]} Be7 {[%emt 0:00:07]} 6. O-O {[%emt 0:00:15]} O-O {[%emt 0:00:28]} 7. Qc2 {[%emt 0:03:07]} c5 {[%emt 0:04:10]} 8. Nc3 {[%emt 0:00:33]} cxd4 {[%emt 0:02:08]} 9. Nxd4 {[%emt 0:00:30]} Bxg2 {[%emt 0:00:07]} 10. Kxg2 {[%emt 0:00:04]} Qc7 {[%emt 0:00:23]} 11. b3 {[%emt 0:00:49]} Nc6 {[%emt 0:01:54]} 12. Nf3 {[%emt 0:01:18]} Qb7 {[%emt 0:05:32]} 13. Kg1 {[%emt 0:03:26]} a6 {[%emt 0:01:52]} 14. Bb2 {[%emt 0:05:28]} b5 {[%emt 0:07:35]} 15. cxb5 {[%emt 0:02:17]} axb5 {[%emt 0:00:06]} 16. Rac1 {[%emt 0:03:09]} Ba3 {[%emt 0:04:02]} 17. Bxa3 {[%emt 0:00:55]} Rxa3 {[%emt 0:00:05]} 18. Nb1 {[%emt 0:00:03]} Raa8 {[%emt 0:01:37]} 19. a3 {[%emt 0:01:28]} Rfc8 {[%emt 0:21:10]} 20. Qd3 {[%emt 0:00:33]} d5 {[%emt 0:00:21]} 21. Rc5 {[%emt 0:02:54]} b4 {[%emt 0:06:19]} 22. a4 {[%emt 0:00:45]} Ne4 {[%emt 0:00:17]} 23. Rc2 {[%emt 0:00:12]} Qa7 {[%emt 0:08:17]} 24. e3 {[%emt 0:13:24]} Na5 {[%emt 0:01:56]} 25. Nd4 {[%emt 0:02:29]} Nc5 {[%emt 0:01:53]} 26. Qd1 {[%emt 0:01:23]} Qa6 {[%emt 0:04:16]} 27. Nd2 {[%emt 0:00:32]} h6 {[%emt 0:06:42]} 28. Nb5 {[%emt 0:04:39]} Rab8 {[%emt 0:04:42]} 29. Qb1 {[%emt 0:01:31]} Nd7 {[%emt 0:07:02]} 30. Rfc1 {[%emt 0:00:57]} Nf6 {[%emt 0:00:12]} 31. Qb2 {[%emt 0:01:11]} Rxc2 {[%emt 0:02:17]} 32. Qxc2 {[%emt 0:00:10]} Qb6 {[%emt 0:00:27]} 33. Nd4 {[%emt 0:04:06]} Kf8 {[%emt 0:03:50]} 34. Qc5+ {[%emt 0:00:57]} Ke8 {[%emt 0:00:14]} 35. f4 {[%emt 0:07:21]} Kd7 {[%emt 0:01:31]} 36. N2f3 {[%emt 0:00:46]} Ng4 {[%emt 0:02:47]} 37. Qxb6 {[%emt 0:07:35]} Rxb6 {[%emt 0:00:03]} 38. h3 {[%emt 0:00:07]} Nxe3 {[%emt 0:00:10]} 39. Ne5+ {[%emt 0:00:07]} Kd8 {[%emt 0:00:34]} 40. Nxf7+ {[%emt 0:00:00]} Ke8 {[%emt 0:00:00]} 41. Ne5 {[%emt 0:10:49]} Nf5 {[%emt 0:01:15]} 42. Rc8+ {[%emt 0:05:04]} Ke7 {[%emt 0:00:06]} 43. Ndc6+ {[%emt 0:00:20]} Nxc6 {[%emt 0:00:34]} 44. Rxc6 {[%emt 0:00:01]} Rxc6 {[%emt 0:04:38]} 45. Nxc6+ {[%emt 0:00:02]} Kd6 {[%emt 0:00:10]} 46. Nxb4 {[%emt 0:00:03]} Nd4 {[%emt 0:00:09]} 47. a5 {[%emt 0:00:31]} Kc7 {[%emt 0:00:06]} 48. Na6+ {[%emt 0:01:30]} Kc6 {[%emt 0:00:24]} 49. b4 {[%emt 0:00:25]} Kb5 {[%emt 0:01:25]} 50. Nc5 {[%emt 0:01:02]} g6 {[%emt 0:01:18]} 51. Kf2 {[%emt 0:02:16]} h5 {[%emt 0:00:12]} 52. g4 {[%emt 0:00:31]} h4 {[%emt 0:00:06]} 53. Nd3 {[%emt 0:02:03]} Nc6 {[%emt 0:00:45]} 54. Ke3 {[%emt 0:02:10]} d4+ {[%emt 0:00:07]} 55. Ke4 {[%emt 0:00:43]} Kc4 {[%emt 0:00:03]} 56. a6 {[%emt 0:04:41]} Na7 {[%emt 0:00:16]} 57. g5 {[%emt 0:06:33]} Nb5 {[%emt 0:00:26]} 58. Nc1 {[%emt 0:00:10]} Na7 {[%emt 0:04:27]} 59. Ke5 {[%emt 0:01:05]} Nb5 {[%emt 0:00:19]} 60. Kxe6 {[%emt 0:01:43]} Nc7+ {[%emt 0:00:11]} 61. Kd6 {[%emt 0:00:33]} Nxa6 {[%emt 0:00:19]} 62. f5 {[%emt 0:00:03]} Nxb4 {[%emt 0:00:28]} 63. fxg6 {[%emt 0:00:21]} Na2 {[%emt 0:00:04]} 64. Nxa2 {[%emt 0:00:11]} d3 {[%emt 0:00:03]} 65. g7 {[%emt 0:00:04]} d2 {[%emt 0:00:03]} 66. g8=Q+ {[%emt 0:00:03]} 1-0

[Event "12th Arad Open 2019"]
[Site "Arad"]
[Date "2019.07.26"]
[Round "4.14"]
[White "Banzea, Alexandru-Bogdan"]
[Black "Vasiesiu, Victor"]
[Result "1-0"]
[ECO "C11"]
[WhiteElo "2405"]
[BlackElo "2269"]
[Annotator "NA"]
[PlyCount "75"]
[EventDate "2019.07.24"]
[EventType "swiss"]
[EventCountry "ROU"]
[SourceTitle "playchess.com"]
[Source "ChessBase"]
[SourceQuality "1"]
[TimeControl "40/5400+30:900+30"]

1. e4 {[%emt 0:00:00]} e6 {[%emt 0:00:00]} 2. d4 {[%emt 0:00:00]} d5 {[%emt 0:00:00]} 3. Nc3 {[%emt 0:00:00]} Nf6 {[%emt 0:00:00]} 4. e5 {[%emt 0:00:00]} Nfd7 {[%emt 0:00:03]} 5. f4 {[%emt 0:00:00]} c5 {[%emt 0:00:05]} 6. Nf3 {[%emt 0:00:02]} Nc6 {[%emt 0:00:03]} 7. Be3 {[%emt 0:00:08]} Be7 {[%emt 0:00:47]} 8. Qd2 {[%emt 0:00:12]} O-O {[%emt 0:00:33]} 9. dxc5 {[%emt 0:00:06]} Qa5 {[%emt 0:00:18]} 10. a3 {[%emt 0:00:06]} Bxc5 {[%emt 0:00:17]} 11. Bxc5 {[%emt 0:03:12]} Nxc5 {[%emt 0:00:37]} 12. O-O-O {[%emt 0:16:34]} Rd8 {[%emt 0:00:19]} 13. Qe3 {[%emt 0:04:27]} Qb6 {[%emt 0:05:32]} 14. Nd4 {[%emt 0:12:52]} Ne4 {[%emt 0:05:09]} 15. Be2 {[%emt 0:07:02]} Nxc3 {[%emt 0:02:07]} 16. Qxc3 {[%emt 0:00:16]} Bd7 {[%emt 0:00:15]} 17. Kb1 {[%emt 0:05:01]} Rac8 {[%emt 0:02:40]} 18. Qe3 {[%emt 0:00:26]} Nxd4 {[%emt 0:17:12]} 19. Qxd4 {[%emt 0:01:53]} Qa5 {[%emt 0:00:09]} 20. Rc1 {[%emt 0:16:24]} Bb5 {[%emt 0:03:37]} 21. Bxb5 {[%emt 0:08:35]} Qxb5 {[%emt 0:00:05]} 22. Qxa7 {[%emt 0:01:04]} d4 {[%emt 0:27:47]} 23. Rhd1 {[%emt 0:03:26]} Qd5 {[%emt 0:04:40]} 24. g3 {[%emt 0:03:45]} b5 {[%emt 0:01:58]} 25. Qa5 {[%emt 0:01:48]} g6 {[%emt 0:03:01]} 26. Rd3 {[%emt 0:00:46]} Ra8 {[%emt 0:00:57]} 27. Qd2 {[%emt 0:00:55]} Kg7 {[%emt 0:06:13]} 28. Rd1 {[%emt 0:03:04]} Ra4 {[%emt 0:02:33]} 29. g4 {[%emt 0:00:16]} Qc5 {[%emt 0:01:18]} 30. Re1 {[%emt 0:06:28]} b4 {[%emt 0:07:59]} 31. f5 {[%emt 0:00:06]} bxa3 {[%emt 0:00:10]} 32. b3 {[%emt 0:00:28]} Ra7 {[%emt 0:01:39]} 33. Rh3 {[%emt 0:00:51]} a2+ {[%emt 0:00:50]} 34. Ka1 {[%emt 0:00:07]} Rh8 {[%emt 0:05:12]} 35. Qh6+ {[%emt 0:00:52]} Kg8 {[%emt 0:00:03]} 36. f6 {[%emt 0:00:18]} Qf8 {[%emt 0:00:05]} 37. g5 {[%emt 0:01:44]} Rc7 {[%emt 0:01:18]} 38. Rd3 {[%emt 0:01:35]} 1-0

[Event "12th Arad Open 2019"]
[Site "Arad"]
[Date "2019.07.26"]
[Round "4.15"]
[White "Marjanovic, Annamaria"]
[Black "Kantorik, Marian"]
[Result "1/2-1/2"]
[ECO "A15"]
[WhiteElo "2343"]
[BlackElo "2196"]
[Annotator "NA"]
[PlyCount "38"]
[EventDate "2019.07.24"]
[EventType "swiss"]
[EventCountry "ROU"]
[SourceTitle "playchess.com"]
[Source "ChessBase"]
[SourceQuality "1"]
[TimeControl "40/5400+30:900+30"]

1. c4 {[%emt 0:00:00]} Nf6 {[%emt 0:02:09]} 2. g3 {[%emt 0:00:00]} e6 {[%emt 0:00:20]} 3. Bg2 {[%emt 0:00:00]} d5 {[%emt 0:00:12]} 4. Nf3 {[%emt 0:00:00]} d4 {[%emt 0:00:16]} 5. O-O {[%emt 0:03:40]} c5 {[%emt 0:00:11]} 6. e3 {[%emt 0:01:10]} Nc6 {[%emt 0:00:11]} 7. Re1 {[%emt 0:02:49]} Bd6 {[%emt 0:00:38]} 8. exd4 {[%emt 0:02:00]} cxd4 {[%emt 0:00:07]} 9. d3 {[%emt 0:00:19]} h6 {[%emt 0:00:15]} 10. b3 {[%emt 0:01:43]} O-O {[%emt 0:01:58]} 11. Ba3 {[%emt 0:03:55]} Re8 {[%emt 0:10:19]} 12. c5 {[%emt 0:18:41]} Bc7 {[%emt 0:00:09]} 13. b4 {[%emt 0:00:17]} a6 {[%emt 0:00:06]} 14. Nbd2 {[%emt 0:02:50]} e5 {[%emt 0:02:47]} 15. Nc4 {[%emt 0:01:02]} Nd5 {[%emt 0:19:59]} 16. Qb3 {[%emt 0:03:09]} Be6 {[%emt 0:01:45]} 17. Nfd2 {[%emt 0:03:49]} f5 {[%emt 0:05:51]} 18. Qb2 {[%emt 0:14:07]} Bf7 {[%emt 0:02:50]} 19. Qb3 {[%emt 0:05:17]} Nf6 {[%emt 0:13:31]} 1/2-1/2

[Event "12th Arad Open 2019"]
[Site "Arad"]
[Date "2019.07.26"]
[Round "4.16"]
[White "Talmaci, Chiril"]
[Black "Bonte, Andrei-Mihai"]
[Result "0-1"]
[ECO "E10"]
[WhiteElo "1731"]
[BlackElo "2337"]
[Annotator "NA"]
[PlyCount "94"]
[EventDate "2019.07.24"]
[EventType "swiss"]
[EventCountry "ROU"]
[SourceTitle "playchess.com"]
[Source "ChessBase"]
[SourceQuality "1"]
[TimeControl "40/5400+30:900+30"]

1. d4 {[%emt 0:00:00]} Nf6 {[%emt 0:00:04]} 2. c4 {[%emt 0:00:00]} e6 {[%emt 0:00:05]} 3. Nf3 {[%emt 0:00:00]} d5 {[%emt 0:03:45]} 4. e3 {[%emt 0:01:09]} Be7 {[%emt 0:02:48]} 5. Nc3 {[%emt 0:00:44]} O-O {[%emt 0:00:16]} 6. Qc2 {[%emt 0:00:24]} a6 {[%emt 0:04:24]} 7. Bd3 {[%emt 0:05:30]} dxc4 {[%emt 0:03:06]} 8. Bxc4 {[%emt 0:00:05]} c5 {[%emt 0:00:05]} 9. dxc5 {[%emt 0:01:23]} Bxc5 {[%emt 0:00:08]} 10. O-O {[%emt 0:00:51]} b5 {[%emt 0:03:09]} 11. Bd3 {[%emt 0:00:15]} Bb7 {[%emt 0:00:11]} 12. Ne4 {[%emt 0:04:23]} Nxe4 {[%emt 0:02:49]} 13. Bxe4 {[%emt 0:00:06]} Bxe4 {[%emt 0:00:08]} 14. Qxe4 {[%emt 0:00:25]} Nd7 {[%emt 0:00:23]} 15. b3 {[%emt 0:09:06]} Nf6 {[%emt 0:10:18]} 16. Qh4 {[%emt 0:01:43]} Nd5 {[%emt 0:00:18]} 17. Qxd8 {[%emt 0:02:00]} Rfxd8 {[%emt 0:00:02]} 18. Bb2 {[%emt 0:00:17]} Rac8 {[%emt 0:00:14]} 19. Rac1 {[%emt 0:00:51]} Nxe3 {[%emt 0:11:13]} 20. Rxc5 {[%emt 0:11:02]} Nxf1 {[%emt 0:02:13]} 21. Rxc8 {[%emt 0:00:06]} Rxc8 {[%emt 0:00:03]} 22. Kxf1 {[%emt 0:00:13]} Rc2 {[%emt 0:00:06]} 23. Bd4 {[%emt 0:00:37]} Rxa2 {[%emt 0:00:07]} 24. b4 {[%emt 0:00:35]} f6 {[%emt 0:03:26]} 25. Bc5 {[%emt 0:06:10]} e5 {[%emt 0:01:16]} 26. Ke1 {[%emt 0:01:22]} Kf7 {[%emt 0:00:11]} 27. Nd2 {[%emt 0:00:26]} Ke6 {[%emt 0:02:14]} 28. Ne4 {[%emt 0:13:47]} a5 {[%emt 0:10:19]} 29. Nc3 {[%emt 0:07:21]} Rc2 {[%emt 0:02:21]} 30. Nxb5 {[%emt 0:01:51]} Kd5 {[%emt 0:07:54]} 31. Kd1 {[%emt 0:22:25]} Rc4 {[%emt 0:00:29]} 32. Bf8 {[%emt 0:01:21]} axb4 {[%emt 0:00:36]} 33. Bxg7 {[%emt 0:00:35]} Rc5 {[%emt 0:01:44]} 34. Bxf6 {[%emt 0:04:32]} Rxb5 {[%emt 0:00:20]} 35. Kc2 {[%emt 0:00:03]} Kc4 {[%emt 0:00:27]} 36. g4 {[%emt 0:01:05]} b3+ {[%emt 0:08:35]} 37. Kb2 {[%emt 0:00:10]} Kd3 {[%emt 0:00:08]} 38. Bg5 {[%emt 0:01:27]} Ke2 {[%emt 0:00:27]} 39. Be3 {[%emt 0:00:08]} Kf3 {[%emt 0:00:26]} 40. g5 {[%emt 0:00:00]} Kg4 {[%emt 0:00:00]} 41. Bc1 {[%emt 0:04:03]} e4 {[%emt 0:03:17]} 42. Be3 {[%emt 0:00:29]} Kh3 {[%emt 0:04:42]} 43. Bf4 {[%emt 0:00:05]} Kg2 {[%emt 0:00:07]} 44. Bg3 {[%emt 0:00:08]} Rxg5 {[%emt 0:00:20]} 45. Bf4 {[%emt 0:03:55]} Rf5 {[%emt 0:00:43]} 46. Be3 {[%emt 0:00:30]} Rxf2+ {[%emt 0:00:08]} 47. Kxb3 {[%emt 0:00:12]} Rf3 {[%emt 0:00:06]} 0-1

[Event "12th Arad Open 2019"]
[Site "Arad"]
[Date "2019.07.26"]
[Round "4.17"]
[White "Ciorgovean, Iustin"]
[Black "Ghimpu, Samuel-Timotei"]
[Result "1-0"]
[ECO "D85"]
[WhiteElo "2330"]
[BlackElo "2193"]
[Annotator "NA"]
[PlyCount "63"]
[EventDate "2019.07.24"]
[EventType "swiss"]
[EventCountry "ROU"]
[SourceTitle "playchess.com"]
[Source "ChessBase"]
[SourceQuality "1"]
[TimeControl "40/5400+30:900+30"]

1. d4 {[%emt 0:00:30]} Nf6 {[%emt 0:00:00]} 2. c4 {[%emt 0:00:03]} g6 {[%emt 0:00:00]} 3. Nc3 {[%emt 0:00:03]} d5 {[%emt 0:00:00]} 4. cxd5 {[%emt 0:00:01]} Nxd5 {[%emt 0:00:00]} 5. e4 {[%emt 0:00:05]} Nxc3 {[%emt 0:00:06]} 6. bxc3 {[%emt 0:00:03]} Bg7 {[%emt 0:00:07]} 7. Nf3 {[%emt 0:00:09]} c5 {[%emt 0:00:06]} 8. Be3 {[%emt 0:00:10]} Qa5 {[%emt 0:00:16]} 9. Qd2 {[%emt 0:00:11]} O-O {[%emt 0:00:26]} 10. Rc1 {[%emt 0:00:53]} cxd4 {[%emt 0:00:25]} 11. cxd4 {[%emt 0:00:26]} Qxd2+ {[%emt 0:00:10]} 12. Nxd2 {[%emt 0:04:04]} Nc6 {[%emt 0:02:10]} 13. Nb3 {[%emt 0:01:25]} Rd8 {[%emt 0:31:02]} 14. d5 {[%emt 0:13:00]} Ne5 {[%emt 0:05:35]} 15. Be2 {[%emt 0:05:43]} f5 {[%emt 0:00:19]} 16. f3 {[%emt 0:01:44]} fxe4 {[%emt 0:03:08]} 17. fxe4 {[%emt 0:00:24]} e6 {[%emt 0:00:05]} 18. Bg5 {[%emt 0:07:42]} Re8 {[%emt 0:02:17]} 19. d6 {[%emt 0:11:19]} Bd7 {[%emt 0:18:42]} 20. Rc7 {[%emt 0:08:14]} Rec8 {[%emt 0:20:42]} 21. Rxb7 {[%emt 0:20:39]} Bc6 {[%emt 0:00:12]} 22. Rc7 {[%emt 0:01:08]} Rxc7 23. dxc7 {[%emt 0:00:08]} Nf7 {[%emt 0:15:08]} 24. Bd2 {[%emt 0:04:42]} Nd6 {[%emt 0:00:30]} 25. Nc5 {[%emt 0:01:50]} Kf7 {[%emt 0:00:29]} 26. O-O+ {[%emt 0:00:17]} Kg8 {[%emt 0:00:30]} 27. Nxe6 {[%emt 0:00:49]} Rc8 {[%emt 0:00:32]} 28. Nxg7 {[%emt 0:02:09]} Kxg7 {[%emt 0:00:08]} 29. Bf4 {[%emt 0:00:17]} Bb5 {[%emt 0:00:45]} 30. Be5+ {[%emt 0:03:09]} Kg8 {[%emt 0:00:14]} 31. Bxb5 {[%emt 0:00:17]} Nxb5 {[%emt 0:00:03]} 32. a4 {[%emt 0:00:11]} 1-0